[Event "Early-Titled-Tuesday-Blitz-June-18-2024"]
[Site "Chess.com"]
[Date "2024.06.18"]
[Round "3"]
[White "Xavier_mompel"]
[Black "Alphafischer2019"]
[Result "0-1"]
[WhiteElo "2435"]
[BlackElo "2637"]
[TimeControl "180+1"]
[EndTime "8:31:09 PDT"]
[Termination "Alphafischer2019 won by resignation"]

1. e4 {[%clk 0:03:00.9]} 1... c5 {[%clk 0:02:59]} 2. Nf3 {[%clk 0:03:00.6]} 2...
Nc6 {[%clk 0:02:59]} 3. d4 {[%clk 0:03:00.5]} 3... cxd4 {[%clk 0:02:59.9]} 4.
Nxd4 {[%clk 0:03:00.8]} 4... g6 {[%clk 0:03:00.5]} 5. Nc3 {[%clk 0:03:01]} 5...
Bg7 {[%clk 0:03:00.4]} 6. Be3 {[%clk 0:03:01.3]} 6... Nf6 {[%clk 0:03:00.7]} 7.
Bc4 {[%clk 0:02:59.7]} 7... O-O {[%clk 0:03:00.7]} 8. Bb3 {[%clk 0:02:59.6]}
8... Re8 {[%clk 0:03:01]} 9. f3 {[%clk 0:02:56.9]} 9... e6 {[%clk 0:02:58.4]}
10. f4 {[%clk 0:02:57.2]} 10... d6 {[%clk 0:02:57]} 11. O-O {[%clk 0:02:42.7]}
11... Qe7 {[%clk 0:02:30.9]} 12. Qf3 {[%clk 0:02:24.7]} 12... Bd7 {[%clk
0:01:57.8]} 13. Rad1 {[%clk 0:02:21.9]} 13... Nxd4 {[%clk 0:01:54.6]} 14. Rxd4
{[%clk 0:02:12.1]} 14... Bc6 {[%clk 0:01:51.3]} 15. Qe2 {[%clk 0:01:59.6]} 15...
Red8 {[%clk 0:01:44]} 16. Rfd1 {[%clk 0:01:57.2]} 16... h5 {[%clk 0:01:35.6]}
17. h3 {[%clk 0:01:53.3]} 17... h4 {[%clk 0:01:28.9]} 18. Qd2 {[%clk 0:01:11.4]}
18... Qf8 {[%clk 0:00:31.8]} 19. Rxd6 {[%clk 0:01:05]} 19... Rxd6 {[%clk
0:00:31.6]} 20. Qxd6 {[%clk 0:01:05.9]} 20... Nxe4 {[%clk 0:00:32.1]} 21. Nxe4
{[%clk 0:01:02.1]} 21... Bxe4 {[%clk 0:00:31.6]} 22. Qxf8+ {[%clk 0:00:55.8]}
22... Rxf8 {[%clk 0:00:31.6]} 23. c3 {[%clk 0:00:49.6]} 23... a6 {[%clk
0:00:32]} 24. Bd4 {[%clk 0:00:41.8]} 24... Bc6 {[%clk 0:00:29.7]} 25. Kf2 {[%clk
0:00:31.8]} 25... Rc8 {[%clk 0:00:28.3]} 26. Bxg7 {[%clk 0:00:22.5]} 26... Kxg7
{[%clk 0:00:28.6]} 27. Rd4 {[%clk 0:00:23.1]} 27... Kf6 {[%clk 0:00:28.8]} 28.
Bc2 {[%clk 0:00:18]} 28... Bd5 {[%clk 0:00:28.2]} 29. a3 {[%clk 0:00:15.3]}
29... b5 {[%clk 0:00:25.1]} 30. Bd1 {[%clk 0:00:10.1]} 30... a5 {[%clk
0:00:21.3]} 31. Bf3 {[%clk 0:00:10.4]} 31... Bb3 {[%clk 0:00:20.6]} 32. Bb7
{[%clk 0:00:08.1]} 32... Rc7 {[%clk 0:00:20.5]} 33. Bf3 {[%clk 0:00:05.7]} 33...
Kf5 {[%clk 0:00:13.7]} 34. Bg4+ {[%clk 0:00:05]} 34... Kf6 {[%clk 0:00:14]} 35.
Bf3 {[%clk 0:00:05.6]} 35... Ba2 {[%clk 0:00:10.3]} 36. Rd6 {[%clk 0:00:05.4]}
36... b4 {[%clk 0:00:09.8]} 37. axb4 {[%clk 0:00:04.8]} 37... axb4 {[%clk
0:00:10.7]} 38. cxb4 {[%clk 0:00:04.1]} 38... Rc2+ {[%clk 0:00:11.3]} 39. Ke3
{[%clk 0:00:04.6]} 39... Rxb2 {[%clk 0:00:11.3]} 40. Rb6 {[%clk 0:00:05]} 40...
Bb1 {[%clk 0:00:07.8]} 41. b5 {[%clk 0:00:03]} 41... Ba2 {[%clk 0:00:04.2]} 42.
Rb7 {[%clk 0:00:03.4]} 42... Rb3+ {[%clk 0:00:04.2]} 43. Kf2 {[%clk 0:00:03.5]}
43... Rb2+ {[%clk 0:00:04.6]} 44. Ke3 {[%clk 0:00:04.1]} 44... Bc4 {[%clk
0:00:05.3]} 45. b6 {[%clk 0:00:03.9]} 45... Rb3+ {[%clk 0:00:05.1]} 46. Kf2
{[%clk 0:00:03.9]} 46... g5 {[%clk 0:00:04.7]} 47. fxg5+ {[%clk 0:00:03.8]}
47... Kxg5 {[%clk 0:00:05.6]} 48. Rxf7 {[%clk 0:00:03.8]} 48... Rxb6 {[%clk
0:00:05.6]} 49. Rg7+ {[%clk 0:00:04.3]} 49... Kf6 {[%clk 0:00:05.4]} 50. Rg4
{[%clk 0:00:04.5]} 50... Rb2+ {[%clk 0:00:05.4]} 51. Ke3 {[%clk 0:00:04.7]}
51... Rb3+ {[%clk 0:00:03.8]} 52. Kd4 {[%clk 0:00:04.8]} 52... Bd3 {[%clk
0:00:04.4]} 53. Rxh4 {[%clk 0:00:04.7]} 53... e5+ {[%clk 0:00:04.6]} 54. Kc5
{[%clk 0:00:03]} 54... Bf5 {[%clk 0:00:04.9]} 55. Rh6+ {[%clk 0:00:02.7]} 55...
Kg5 {[%clk 0:00:05.1]} 56. Rh5+ {[%clk 0:00:02.6]} 56... Kf4 {[%clk 0:00:05.2]}
57. Rh4+ {[%clk 0:00:02.9]} 57... Kg3 {[%clk 0:00:05.7]} 58. Kd5 {[%clk
0:00:02.6]} 58... Kxh4 {[%clk 0:00:05.3]} 59. Kxe5 {[%clk 0:00:03.1]} 59... Rb5+
{[%clk 0:00:05.4]} 60. Kf4 {[%clk 0:00:03.3]} 60... Ra5 {[%clk 0:00:05.7]} 61.
g4 {[%clk 0:00:02.2]} 61... Bh7 {[%clk 0:00:04.9]} 62. Bg2 {[%clk 0:00:02]}
62... Ra4+ {[%clk 0:00:04.7]} 63. Ke3 {[%clk 0:00:02.2]} 63... Ra2 {[%clk
0:00:05.1]} 64. Bf1 {[%clk 0:00:01.9]} 64... Kg3 {[%clk 0:00:05.3]} 65. g5
{[%clk 0:00:01.5]} 65... Kh4 {[%clk 0:00:05.6]} 66. Bc4 {[%clk 0:00:01.8]} 66...
Ra3+ {[%clk 0:00:05.3]} 67. Kf4 {[%clk 0:00:01.9]} 67... Ra4 {[%clk 0:00:03.6]}
68. Ke5 {[%clk 0:00:02.3]} 68... Rxc4 {[%clk 0:00:04.5]} 69. Kf6 {[%clk
0:00:03.2]} 69... Rc3 {[%clk 0:00:04]} 70. Kg7 {[%clk 0:00:03.4]} 70... Kxg5
{[%clk 0:00:04.3]} 71. Kxh7 {[%clk 0:00:03.7]} 71... Rf3 {[%clk 0:00:04.6]} 72.
Kg7 {[%clk 0:00:04.6]} 72... Kh4 {[%clk 0:00:05.3]} 0-1

[Event "Early-Titled-Tuesday-Blitz-June-18-2024"]
[Site "Chess.com"]
[Date "2024.06.18"]
[Round "3"]
[White "Milop27"]
[Black "ManMish2"]
[Result "0-1"]
[WhiteElo "2439"]
[BlackElo "2644"]
[TimeControl "180+1"]
[EndTime "8:31:14 PDT"]
[Termination "ManMish2 won on time"]

1. e4 {[%clk 0:03:00.9]} 1... e5 {[%clk 0:02:59.7]} 2. Nf3 {[%clk 0:03:00.7]}
2... Nc6 {[%clk 0:03:00.1]} 3. Bb5 {[%clk 0:03:01]} 3... a6 {[%clk 0:02:59.7]}
4. Ba4 {[%clk 0:03:00.9]} 4... Nf6 {[%clk 0:02:59.6]} 5. d3 {[%clk 0:03:01]}
5... Bc5 {[%clk 0:02:58.8]} 6. O-O {[%clk 0:03:00.7]} 6... b5 {[%clk 0:02:55]}
7. Bb3 {[%clk 0:02:59.8]} 7... d6 {[%clk 0:02:54.3]} 8. c3 {[%clk 0:02:59.9]}
8... O-O {[%clk 0:02:54]} 9. Nbd2 {[%clk 0:02:56.7]} 9... Bb6 {[%clk 0:02:49.7]}
10. Re1 {[%clk 0:02:56.5]} 10... Ne7 {[%clk 0:02:48.7]} 11. Nf1 {[%clk
0:02:53.8]} 11... Ng6 {[%clk 0:02:48.9]} 12. Be3 {[%clk 0:02:53.7]} 12... c5
{[%clk 0:02:46.3]} 13. h3 {[%clk 0:02:48.9]} 13... Be6 {[%clk 0:02:40.7]} 14.
Bc2 {[%clk 0:02:46.4]} 14... d5 {[%clk 0:02:32.4]} 15. Ng3 {[%clk 0:02:39.1]}
15... d4 {[%clk 0:02:29.1]} 16. Bg5 {[%clk 0:02:32.9]} 16... h6 {[%clk
0:02:20.9]} 17. Bc1 {[%clk 0:02:30.7]} 17... Rc8 {[%clk 0:02:15.7]} 18. cxd4
{[%clk 0:02:27.4]} 18... cxd4 {[%clk 0:02:10.9]} 19. Bd2 {[%clk 0:02:24.3]}
19... a5 {[%clk 0:02:09.2]} 20. Rc1 {[%clk 0:02:23.2]} 20... a4 {[%clk 0:02:02]}
21. a3 {[%clk 0:02:14.5]} 21... Ba5 {[%clk 0:01:52.2]} 22. Bb1 {[%clk
0:02:11.8]} 22... Rxc1 {[%clk 0:01:50]} 23. Qxc1 {[%clk 0:02:10.7]} 23... Qb6
{[%clk 0:01:45.5]} 24. Bb4 {[%clk 0:02:00.4]} 24... Bxb4 {[%clk 0:01:39.8]} 25.
axb4 {[%clk 0:01:59.4]} 25... Rc8 {[%clk 0:01:39.6]} 26. Qd2 {[%clk 0:01:59.9]}
26... Qd6 {[%clk 0:01:26.2]} 27. Ne2 {[%clk 0:01:57.2]} 27... Nh5 {[%clk
0:01:14.5]} 28. Rc1 {[%clk 0:01:54]} 28... Rxc1+ {[%clk 0:01:13.3]} 29. Nxc1
{[%clk 0:01:53.2]} 29... Nhf4 {[%clk 0:01:11.4]} 30. Ba2 {[%clk 0:01:43.5]}
30... Bxa2 {[%clk 0:01:08]} 31. Nxa2 {[%clk 0:01:43.2]} 31... Ne7 {[%clk
0:00:51.7]} 32. g3 {[%clk 0:01:37.7]} 32... Nxh3+ {[%clk 0:00:43]} 33. Kh2
{[%clk 0:01:37.7]} 33... Qe6 {[%clk 0:00:40.6]} 34. Nc1 {[%clk 0:01:32.2]} 34...
Qg4 {[%clk 0:00:18.4]} 35. Ng1 {[%clk 0:01:19.8]} 35... Nxg1 {[%clk 0:00:16.7]}
36. Kxg1 {[%clk 0:01:19.8]} 36... Qc8 {[%clk 0:00:16.6]} 37. Ne2 {[%clk
0:01:16.4]} 37... Ng6 {[%clk 0:00:14]} 38. Kg2 {[%clk 0:01:16]} 38... h5 {[%clk
0:00:13.5]} 39. Qg5 {[%clk 0:01:13.4]} 39... Qg4 {[%clk 0:00:13.8]} 40. Qd8+
{[%clk 0:00:47.6]} 40... Kh7 {[%clk 0:00:13.6]} 41. Ng1 {[%clk 0:00:47.9]} 41...
Nf4+ {[%clk 0:00:09.7]} 42. Kh2 {[%clk 0:00:46.5]} 42... Nxd3 {[%clk 0:00:09.6]}
43. f3 {[%clk 0:00:44.3]} 43... Qg6 {[%clk 0:00:06.8]} 44. Qd7 {[%clk
0:00:38.5]} 44... Nxb2 {[%clk 0:00:06.4]} 45. Qxb5 {[%clk 0:00:37]} 45... a3
{[%clk 0:00:06.8]} 46. Qa5 {[%clk 0:00:34.6]} 46... Nc4 {[%clk 0:00:07.2]} 47.
Qa4 {[%clk 0:00:32.9]} 47... Ne3 {[%clk 0:00:06.9]} 48. b5 {[%clk 0:00:32.3]}
48... Nf1+ {[%clk 0:00:06.4]} 49. Kg2 {[%clk 0:00:32.6]} 49... Nxg3 {[%clk
0:00:06.4]} 50. Qxa3 {[%clk 0:00:31.4]} 50... Nxe4+ {[%clk 0:00:06.2]} 51. Kf1
{[%clk 0:00:31.6]} 51... Nd2+ {[%clk 0:00:06.5]} 52. Ke2 {[%clk 0:00:30.2]}
52... Nc4 {[%clk 0:00:06.4]} 53. Qc1 {[%clk 0:00:26.8]} 53... Qg2+ {[%clk
0:00:06.5]} 54. Kd3 {[%clk 0:00:25.7]} 54... Nd6 {[%clk 0:00:07.4]} 55. b6
{[%clk 0:00:22.5]} 55... h4 {[%clk 0:00:07.1]} 56. Qc7 {[%clk 0:00:18.8]} 56...
Qf1+ {[%clk 0:00:06.7]} 57. Kd2 {[%clk 0:00:17.5]} 57... Nc4+ {[%clk 0:00:06.7]}
58. Kc2 {[%clk 0:00:16.8]} 58... d3+ {[%clk 0:00:07.3]} 59. Kc3 {[%clk
0:00:17.1]} 59... Qc1+ {[%clk 0:00:07.7]} 60. Kb4 {[%clk 0:00:15]} 60... d2
{[%clk 0:00:06.7]} 61. Qxf7 {[%clk 0:00:13]} 61... Qb2+ {[%clk 0:00:04.9]} 62.
Kc5 {[%clk 0:00:10.1]} 62... Qxb6+ {[%clk 0:00:04]} 63. Kxc4 {[%clk 0:00:09.7]}
63... Qc6+ {[%clk 0:00:04.4]} 64. Kb4 {[%clk 0:00:08.1]} 64... d1=Q {[%clk
0:00:04.8]} 65. Qf5+ {[%clk 0:00:05.8]} 65... Qg6 {[%clk 0:00:05.1]} 0-1

[Event "Early-Titled-Tuesday-Blitz-June-18-2024"]
[Site "Chess.com"]
[Date "2024.06.18"]
[Round "3"]
[White "topce"]
[Black "Abund"]
[Result "1/2-1/2"]
[WhiteElo "2506"]
[BlackElo "2727"]
[TimeControl "180+1"]
[EndTime "8:31:15 PDT"]
[Termination "Game drawn by repetition"]

1. c4 {[%clk 0:03:00.9]} 1... e6 {[%clk 0:02:58.3]} 2. Nc3 {[%clk 0:03:01.3]}
2... d5 {[%clk 0:02:58.5]} 3. d4 {[%clk 0:03:01.4]} 3... Be7 {[%clk 0:02:57.2]}
4. cxd5 {[%clk 0:03:00.3]} 4... exd5 {[%clk 0:02:57.2]} 5. Bf4 {[%clk
0:03:00.5]} 5... c6 {[%clk 0:02:57.6]} 6. e3 {[%clk 0:03:00.8]} 6... Bf5 {[%clk
0:02:57.9]} 7. g4 {[%clk 0:02:58.8]} 7... Bg6 {[%clk 0:02:57.8]} 8. h3 {[%clk
0:02:57.3]} 8... Nd7 {[%clk 0:02:55.8]} 9. Nf3 {[%clk 0:02:50.6]} 9... Ngf6
{[%clk 0:02:47.7]} 10. Bg2 {[%clk 0:02:50.1]} 10... Ne4 {[%clk 0:02:47.7]} 11.
O-O {[%clk 0:02:46.9]} 11... h5 {[%clk 0:02:42.9]} 12. Ne5 {[%clk 0:02:21.6]}
12... Nxe5 {[%clk 0:02:40.8]} 13. Bxe5 {[%clk 0:02:10.9]} 13... hxg4 {[%clk
0:02:36.4]} 14. hxg4 {[%clk 0:01:46.8]} 14... Bd6 {[%clk 0:02:24.8]} 15. Nxe4
{[%clk 0:01:24.5]} 15... Bxe4 {[%clk 0:02:14.6]} 16. f3 {[%clk 0:01:04.5]} 16...
Bg6 {[%clk 0:02:02.6]} 17. Qe1 {[%clk 0:00:43.5]} 17... f6 {[%clk 0:01:37]} 18.
Bf4 {[%clk 0:00:39.3]} 18... Qc7 {[%clk 0:01:24.3]} 19. Qg3 {[%clk 0:00:36.5]}
19... O-O-O {[%clk 0:01:24]} 20. Rac1 {[%clk 0:00:32.1]} 20... Bxf4 {[%clk
0:01:22.5]} 21. Qxf4 {[%clk 0:00:30.4]} 21... Qxf4 {[%clk 0:01:08.2]} 22. exf4
{[%clk 0:00:31.3]} 22... Rde8 {[%clk 0:01:03.7]} 23. f5 {[%clk 0:00:28.9]} 23...
Bf7 {[%clk 0:01:04]} 24. Rfe1 {[%clk 0:00:29]} 24... Kd7 {[%clk 0:01:02.6]} 25.
Kf2 {[%clk 0:00:28.6]} 25... Kd6 {[%clk 0:01:02.1]} 26. b4 {[%clk 0:00:28]}
26... Kc7 {[%clk 0:00:58.2]} 27. f4 {[%clk 0:00:25.4]} 27... Kb6 {[%clk
0:00:58.2]} 28. a3 {[%clk 0:00:19.9]} 28... Rxe1 {[%clk 0:00:36.8]} 29. Kxe1
{[%clk 0:00:18.1]} 29... Rh4 {[%clk 0:00:26.6]} 30. Bf3 {[%clk 0:00:16.2]} 30...
Rh2 {[%clk 0:00:21.5]} 31. Rc3 {[%clk 0:00:15.6]} 31... Be8 {[%clk 0:00:16.4]}
32. Re3 {[%clk 0:00:14.4]} 32... Rh3 {[%clk 0:00:16.1]} 33. Kf2 {[%clk
0:00:14.1]} 33... Bd7 {[%clk 0:00:16.5]} 34. Kg2 {[%clk 0:00:14]} 34... Rh7
{[%clk 0:00:15.1]} 35. Re7 {[%clk 0:00:14.1]} 35... Kc7 {[%clk 0:00:14.9]} 36.
g5 {[%clk 0:00:12.8]} 36... Kd8 {[%clk 0:00:15.2]} 37. g6 {[%clk 0:00:12.2]}
37... Rh6 {[%clk 0:00:13.6]} 38. Rxg7 {[%clk 0:00:11.9]} 38... Bxf5 {[%clk
0:00:14.3]} 39. Rg8+ {[%clk 0:00:11.8]} 39... Ke7 {[%clk 0:00:14]} 40. g7 {[%clk
0:00:12.7]} 40... Be6 {[%clk 0:00:12]} 41. Rb8 {[%clk 0:00:13.6]} 41... Rg6+
{[%clk 0:00:11.9]} 42. Kf2 {[%clk 0:00:13.2]} 42... b5 {[%clk 0:00:11.2]} 43.
Rb7+ {[%clk 0:00:14.1]} 43... Kd6 {[%clk 0:00:11]} 44. Rxa7 {[%clk 0:00:13.8]}
44... Bd7 {[%clk 0:00:10.8]} 45. f5 {[%clk 0:00:12.1]} 45... Rxg7 {[%clk
0:00:10.9]} 46. Ke3 {[%clk 0:00:09.7]} 46... Rg5 {[%clk 0:00:10.3]} 47. Kf4
{[%clk 0:00:09.9]} 47... Rxf5+ {[%clk 0:00:10.6]} 48. Ke3 {[%clk 0:00:10.8]}
48... Rg5 {[%clk 0:00:11.3]} 49. Be2 {[%clk 0:00:10.8]} 49... Rg3+ {[%clk
0:00:11.6]} 50. Bf3 {[%clk 0:00:10.9]} 50... Bg4 {[%clk 0:00:11.9]} 51. Kf4
{[%clk 0:00:10.9]} 51... Rxf3+ {[%clk 0:00:10.4]} 52. Kxg4 {[%clk 0:00:11.4]}
52... Rd3 {[%clk 0:00:10.6]} 53. Kf5 {[%clk 0:00:10.7]} 53... Rxd4 {[%clk
0:00:09.8]} 54. Rf7 {[%clk 0:00:11.3]} 54... Rd3 {[%clk 0:00:08.6]} 55. Rxf6+
{[%clk 0:00:12.2]} 55... Kc7 {[%clk 0:00:07.6]} 56. Ke5 {[%clk 0:00:13.1]} 56...
Rxa3 {[%clk 0:00:07.3]} 57. Rf7+ {[%clk 0:00:12.7]} 57... Kb6 {[%clk 0:00:07.7]}
58. Kd6 {[%clk 0:00:13.4]} 58... Rh3 {[%clk 0:00:07.5]} 59. Rf6 {[%clk
0:00:12.6]} 59... Rb3 {[%clk 0:00:07.2]} 60. Rf8 {[%clk 0:00:12]} 60... Kb7
{[%clk 0:00:06.3]} 61. Kc5 {[%clk 0:00:11.5]} 61... Rc3+ {[%clk 0:00:06]} 62.
Kd6 {[%clk 0:00:11.9]} 62... Rc4 {[%clk 0:00:06.5]} 63. Rf7+ {[%clk 0:00:09.5]}
63... Kb6 {[%clk 0:00:07]} 64. Rc7 {[%clk 0:00:09.1]} 64... d4 {[%clk 0:00:07]}
65. Rc8 {[%clk 0:00:09]} 65... Kb7 {[%clk 0:00:07.1]} 66. Kd7 {[%clk 0:00:09.2]}
66... d3 {[%clk 0:00:06.9]} 67. Rc7+ {[%clk 0:00:09.7]} 67... Kb6 {[%clk
0:00:07.5]} 68. Rc8 {[%clk 0:00:09.8]} 68... d2 {[%clk 0:00:07.9]} 69. Rb8+
{[%clk 0:00:09.5]} 69... Ka7 {[%clk 0:00:08.4]} 70. Kc7 {[%clk 0:00:09.6]} 70...
Rxb4 {[%clk 0:00:06.8]} 71. Rb7+ {[%clk 0:00:07.3]} 71... Ka6 {[%clk 0:00:06.9]}
72. Rb8 {[%clk 0:00:07.3]} 72... Ka7 {[%clk 0:00:04.6]} 73. Rb7+ {[%clk
0:00:06.6]} 73... Ka6 {[%clk 0:00:04.5]} 74. Rb8 {[%clk 0:00:07.1]} 74... Ka7
{[%clk 0:00:02.3]} 1/2-1/2

[Event "Early-Titled-Tuesday-Blitz-June-18-2024"]
[Site "Chess.com"]
[Date "2024.06.18"]
[Round "3"]
[White "HansOnTwitch"]
[Black "Rodalquilar"]
[Result "1-0"]
[WhiteElo "3165"]
[BlackElo "2793"]
[TimeControl "180+1"]
[EndTime "8:31:16 PDT"]
[Termination "HansOnTwitch won on time"]

1. e4 {[%clk 0:03:00.9]} 1... d5 {[%clk 0:03:00]} 2. exd5 {[%clk 0:03:00.8]}
2... Qxd5 {[%clk 0:03:00.9]} 3. Nc3 {[%clk 0:03:00.9]} 3... Qa5 {[%clk
0:03:01.2]} 4. d4 {[%clk 0:03:01.1]} 4... Nf6 {[%clk 0:03:01.6]} 5. Bc4 {[%clk
0:02:57.7]} 5... Bg4 {[%clk 0:03:01.4]} 6. Nf3 {[%clk 0:02:54.4]} 6... Nc6
{[%clk 0:03:01.1]} 7. Bb5 {[%clk 0:02:40]} 7... O-O-O {[%clk 0:03:00.1]} 8. Bxc6
{[%clk 0:02:39.7]} 8... bxc6 {[%clk 0:03:01]} 9. Bd2 {[%clk 0:02:36.3]} 9... Qh5
{[%clk 0:03:00.1]} 10. Qe2 {[%clk 0:02:32.5]} 10... Bxf3 {[%clk 0:02:59.6]} 11.
gxf3 {[%clk 0:02:31.7]} 11... Kb7 {[%clk 0:02:39.2]} 12. O-O-O {[%clk
0:02:26.2]} 12... e6 {[%clk 0:02:39.3]} 13. Rhg1 {[%clk 0:02:21.4]} 13... h6
{[%clk 0:02:37.8]} 14. Qc4 {[%clk 0:02:11.3]} 14... Qa5 {[%clk 0:02:20.4]} 15.
a3 {[%clk 0:02:02.2]} 15... Qa6 {[%clk 0:02:13.2]} 16. Qxa6+ {[%clk 0:01:59.6]}
16... Kxa6 {[%clk 0:02:13.4]} 17. Bf4 {[%clk 0:01:59.8]} 17... Kb7 {[%clk
0:02:11.5]} 18. Ne4 {[%clk 0:02:00]} 18... Nxe4 {[%clk 0:01:23.9]} 19. fxe4
{[%clk 0:01:59.6]} 19... g6 {[%clk 0:01:24.4]} 20. Rg3 {[%clk 0:01:54.1]} 20...
Bd6 {[%clk 0:01:21.1]} 21. Rb3+ {[%clk 0:01:53.7]} 21... Kc8 {[%clk 0:01:20.7]}
22. e5 {[%clk 0:01:47.7]} 22... Be7 {[%clk 0:01:19.5]} 23. c4 {[%clk 0:01:46.9]}
23... Rd7 {[%clk 0:00:57.1]} 24. Kc2 {[%clk 0:01:42.6]} 24... Rhd8 {[%clk
0:00:53.9]} 25. Rbd3 {[%clk 0:01:42.5]} 25... Bg5 {[%clk 0:00:48.8]} 26. Bg3
{[%clk 0:01:38.4]} 26... f5 {[%clk 0:00:40]} 27. f3 {[%clk 0:01:30.3]} 27... Re8
{[%clk 0:00:19.9]} 28. f4 {[%clk 0:01:23.1]} 28... Be7 {[%clk 0:00:19]} 29. d5
{[%clk 0:01:23.4]} 29... cxd5 {[%clk 0:00:17.7]} 30. cxd5 {[%clk 0:01:24.3]}
30... Rxd5 {[%clk 0:00:17.1]} 31. Rxd5 {[%clk 0:01:25]} 31... exd5 {[%clk
0:00:17.8]} 32. Rxd5 {[%clk 0:01:25.6]} 32... Rd8 {[%clk 0:00:16]} 33. Ra5
{[%clk 0:01:25.4]} 33... Kb7 {[%clk 0:00:15]} 34. Bf2 {[%clk 0:01:25.3]} 34...
a6 {[%clk 0:00:15.4]} 35. Ra4 {[%clk 0:01:21.7]} 35... Rd5 {[%clk 0:00:15.5]}
36. Rc4 {[%clk 0:01:15.9]} 36... g5 {[%clk 0:00:15.3]} 37. Be3 {[%clk
0:01:06.8]} 37... gxf4 {[%clk 0:00:11.3]} 38. Bxf4 {[%clk 0:01:05.4]} 38... Bg5
{[%clk 0:00:11.9]} 39. Bg3 {[%clk 0:00:51.7]} 39... f4 {[%clk 0:00:12.1]} 40.
Bxf4 {[%clk 0:00:51.7]} 40... Bxf4 {[%clk 0:00:12.8]} 41. Rxf4 {[%clk
0:00:52.2]} 41... Rxe5 {[%clk 0:00:13.5]} 42. Rh4 {[%clk 0:00:52.7]} 42... h5
{[%clk 0:00:13.9]} 43. Kd3 {[%clk 0:00:48.6]} 43... a5 {[%clk 0:00:12.3]} 44. a4
{[%clk 0:00:46]} 44... Kb6 {[%clk 0:00:11.7]} 45. Kd4 {[%clk 0:00:43.1]} 45...
Rg5 {[%clk 0:00:11.8]} 46. b3 {[%clk 0:00:38]} 46... c6 {[%clk 0:00:11.3]} 47.
Rh3 {[%clk 0:00:36.5]} 47... Rd5+ {[%clk 0:00:09.9]} 48. Kc4 {[%clk 0:00:36.1]}
48... Rc5+ {[%clk 0:00:10]} 49. Kd4 {[%clk 0:00:36.4]} 49... Rd5+ {[%clk
0:00:10.9]} 50. Kc3 {[%clk 0:00:33.7]} 50... Rc5+ {[%clk 0:00:11.1]} 51. Kb2
{[%clk 0:00:34.3]} 51... Rd5 {[%clk 0:00:11.5]} 52. Rh4 {[%clk 0:00:33.5]} 52...
Rd2+ {[%clk 0:00:11.6]} 53. Kc3 {[%clk 0:00:33.2]} 53... Rd5 {[%clk 0:00:12.5]}
54. b4 {[%clk 0:00:29.4]} 54... Rf5 {[%clk 0:00:10.4]} 55. Kc4 {[%clk
0:00:21.9]} 55... axb4 {[%clk 0:00:07.4]} 56. Kxb4 {[%clk 0:00:22.4]} 56... c5+
{[%clk 0:00:07.7]} 57. Kb3 {[%clk 0:00:19.4]} 57... Ka5 {[%clk 0:00:08.3]} 58.
Re4 {[%clk 0:00:12.7]} 58... Rf2 {[%clk 0:00:06.4]} 59. h4 {[%clk 0:00:11.3]}
59... Rf5 {[%clk 0:00:06.6]} 60. Kc3 {[%clk 0:00:07.7]} 60... Kb6 {[%clk
0:00:03]} 61. Kc4 {[%clk 0:00:05.6]} 61... Ka5 {[%clk 0:00:03.6]} 62. Re8 {[%clk
0:00:03.2]} 62... Rf4+ {[%clk 0:00:01.8]} 63. Kxc5 {[%clk 0:00:03.2]} 63... Rf5+
{[%clk 0:00:02.2]} 64. Kd6 {[%clk 0:00:03]} 64... Kxa4 {[%clk 0:00:02.3]} 65.
Re5 {[%clk 0:00:02.8]} 65... Rf4 {[%clk 0:00:01.7]} 66. Rxh5 {[%clk 0:00:02.8]}
66... Kb4 {[%clk 0:00:02.2]} 67. Rh8 {[%clk 0:00:03.4]} 67... Kc4 {[%clk
0:00:02.4]} 68. h5 {[%clk 0:00:04]} 68... Rg4 {[%clk 0:00:02.3]} 69. Ke5 {[%clk
0:00:03.9]} 69... Rh4 {[%clk 0:00:01.8]} 70. h6 {[%clk 0:00:04.2]} 70... Rh1
{[%clk 0:00:02.4]} 71. h7 {[%clk 0:00:03.1]} 71... Re1+ {[%clk 0:00:02.1]} 72.
Kf4 {[%clk 0:00:02.8]} 72... Rf1+ {[%clk 0:00:02.6]} 73. Kg3 {[%clk 0:00:03.3]}
73... Rg1+ {[%clk 0:00:02.9]} 74. Kf2 {[%clk 0:00:03.7]} 74... Rh1 {[%clk
0:00:03.1]} 75. Rc8+ {[%clk 0:00:04.3]} 1-0